bitfinex/quotes_BTCUSD_20250308
["timestamp","ask_amount","ask_price","bid_price","bid_amount"]
[1741456570310,0.011589,86283.0,86278.0,0.01159]
[1741456572314,0.011589,86283.0,86276.0,0.1857886]
[1741456572315,0.197033,86280.0,86276.0,0.0003396]
[1741456572933,0.01159,86279.0,86276.0,0.0003396]
[1741456573496,0.197037,86278.0,86277.0,0.0013394]
[1741456573708,0.01159,86279.0,86277.0,0.0013394]
[1741456573938,0.01159,86280.0,86277.0,0.0003394]
[1741456574314,0.01159,86280.0,86277.0,0.0033394]
[1741456575285,0.01159,86278.0,86277.0,0.0023394]
[1741456575568,0.01159,86278.0,86277.0,0.0003394]
[1741456575998,0.01159,86278.0,86277.0,0.0013394]
[1741456576354,0.01159,86278.0,86277.0,0.0003394]
[1741456576520,0.01159,86278.0,86277.0,0.0033394]
[1741456577122,0.01159,86278.0,86277.0,0.0013394]
[1741456577123,0.31159,86278.0,86277.0,0.0013394]
[1741456577330,0.38709,86278.0,86277.0,0.0023394]
[1741456577951,0.38709,86278.0,86277.0,0.0013394]
[1741456578150,0.38709,86278.0,86277.0,0.0023394]
[1741456578577,0.38709,86278.0,86277.0,0.0013394]
[1741456579062,0.51001,86278.0,86277.0,0.0003394]
[1741456579340,0.51101,86278.0,86277.0,0.0003394]
[1741456579691,0.51001,86278.0,86277.0,0.0003394]
[1741456579895,0.51501,86278.0,86277.0,0.0003394]
[1741456580485,0.51001,86278.0,86277.0,0.0003394]
[1741456580843,0.51401,86278.0,86277.0,0.0003394]
[1741456582153,0.43851,86278.0,86277.0,0.0003394]
[1741456583971,0.01559,86278.0,86277.0,0.0003394]
[1741456585342,0.09749,86278.0,86277.0,0.0003394]
[1741456588822,0.09349,86278.0,86277.0,0.0003394]
[1741456589254,0.40049,86278.0,86277.0,0.0003394]
[1741456589753,0.39349,86278.0,86277.0,0.0003394]
[1741456589911,0.39949,86278.0,86277.0,0.0003394]
[1741456590506,0.39349,86278.0,86277.0,0.0003394]
[1741456590711,0.40049,86278.0,86277.0,0.0003394]
[1741456591212,0.40449,86278.0,86277.0,0.0003394]
[1741456591818,0.32259,86278.0,86277.0,0.0003394]
[1741456592742,0.31559,86278.0,86277.0,0.0003394]
[1741456593047,0.32059,86278.0,86277.0,0.0003394]
[1741456594321,0.185492,86257.0,86254.0,0.17212]
[1741456594730,0.185492,86257.0,86256.0,0.0838296]
[1741456595477,0.185492,86257.0,86256.0,0.0082296]
[1741456595682,0.185492,86257.0,86256.0,0.00861668]
[1741456595974,0.011593,86257.0,86256.0,0.01161668]
[1741456596172,0.197085,86257.0,86256.0,0.01161668]
[1741456598551,0.197085,86257.0,86256.0,0.00861668]
[1741456598961,0.197085,86257.0,86256.0,0.00961668]
[1741456599538,0.197085,86257.0,86256.0,0.00995628]
[1741456603475,0.011593,86257.0,86256.0,0.00995628]
[1741456603675,0.10173,86259.0,86256.0,0.00995628]
[1741456604242,0.113322,86259.0,86256.0,0.00995628]
[1741456604862,0.011592,86259.0,86256.0,0.00995628]
[1741456605619,0.011592,86259.0,86256.0,0.00895628]
[1741456606467,0.02292636,86260.0,86256.0,0.19445028]
[1741456606668,0.02292636,86260.0,86256.0,0.20604328]
[1741456606945,0.02292636,86260.0,86257.0,0.011593]
[1741456607151,0.02292636,86260.0,86258.0,0.00822565]
[1741456607356,0.02292636,86260.0,86256.0,0.01231968]
[1741456607562,0.02292636,86260.0,86257.0,0.00822706]
[1741456609024,0.02392636,86260.0,86257.0,0.00822706]
[1741456609636,0.03451836,86260.0,86257.0,0.00822706]
[1741456609755,0.03551836,86260.0,86257.0,0.00822706]
[1741456611754,0.03568816,86260.0,86257.0,0.00822706]
[1741456612564,0.02409616,86260.0,86257.0,0.00822706]
[1741456613483,0.20958216,86260.0,86257.0,0.00822706]
[1741456614685,0.02409616,86260.0,86257.0,0.00822706]
[1741456617434,0.20958216,86260.0,86257.0,0.00822706]
[1741456619516,0.20858216,86260.0,86257.0,0.00822706]
[1741456619951,0.20958216,86260.0,86257.0,0.00822706]
[1741456620311,0.20858216,86260.0,86257.0,0.00822706]
[1741456620721,0.02309616,86260.0,86257.0,0.01982006]
[1741456620927,0.02309616,86260.0,86257.0,0.20531106]
[1741456621347,0.02309616,86260.0,86259.0,0.011592]
[1741456621686,0.02309616,86260.0,86259.0,0.01988968]
[1741456621887,0.02409616,86260.0,86259.0,0.01988968]
[1741456622123,0.02409616,86260.0,86259.0,0.00829768]
[1741456622328,0.02309616,86260.0,86259.0,0.00829768]
[1741456622528,0.02409616,86260.0,86257.0,0.197084]
[1741456622746,0.02409616,86260.0,86259.0,0.00829768]
[1741456622967,0.02409616,86260.0,86258.0,0.01989209]
[1741456623239,0.02409616,86260.0,86259.0,0.00841156]
[1741456623422,0.02309616,86260.0,86259.0,0.00841156]
[1741456623836,0.02409616,86260.0,86256.0,0.01231968]
[1741456624141,0.02409616,86260.0,86259.0,0.00841156]
[1741456624307,0.02409616,86260.0,86256.0,0.01231968]
[1741456624482,0.02409616,86260.0,86259.0,0.00841156]
[1741456624678,0.22117316,86260.0,86256.0,0.00072668]
[1741456624903,0.011593,86257.0,86256.0,0.00072668]
[1741456626313,0.011593,86257.0,86256.0,0.00172668]
[1741456627255,0.011593,86257.0,86256.0,0.00046717]
[1741456627655,0.185491,86258.0,86256.0,0.00046717]
[1741456628074,0.011593,86257.0,86247.0,0.197106]
[1741456628284,0.011593,86254.0,86248.0,0.011594]
[1741456628838,0.03496211,86257.0,86249.0,0.197103]
[1741456629052,0.03596211,86257.0,86251.0,0.197098]
[1741456629229,0.011593,86255.0,86249.0,0.011594]
[1741456629829,0.001,86254.0,86249.0,0.011594]
[1741456630080,0.001,86254.0,86250.0,0.00843278]
[1741456630278,0.001,86254.0,86249.0,0.011594]
[1741456630482,0.001,86254.0,86251.0,0.00843137]
[1741456630731,0.001,86254.0,86249.0,0.197102]
[1741456630916,0.011593,86253.0,86252.0,0.00842996]
[1741456631148,0.011593,86255.0,86248.0,0.011594]
[1741456631479,0.011593,86255.0,86249.0,0.20553719]
[1741456632482,0.012593,86255.0,86249.0,0.20553719]
[1741456633681,0.011593,86253.0,86249.0,0.00843419]
[1741456633978,0.011593,86253.0,86248.0,0.011594]
[1741456634127,0.011593,86253.0,86250.0,0.00843278]
[1741456634327,0.011593,86253.0,86249.0,0.00843419]
[1741456634539,0.011593,86253.0,86251.0,0.00843137]
[1741456634749,0.011593,86253.0,86250.0,0.00843278]
[1741456635148,0.011593,86253.0,86248.0,0.011594]
[1741456636154,0.011593,86253.0,86249.0,0.00843091]
[1741456636785,0.011593,86255.0,86249.0,0.00843091]
[1741456638683,0.011593,86255.0,86251.0,0.0001699]
[1741456639086,0.011593,86255.0,86252.0,0.00842668]
[1741456639443,0.012593,86255.0,86252.0,0.00842668]
[1741456639648,0.001,86255.0,86252.0,0.00842668]
[1741456639846,0.185494,86256.0,86252.0,0.00842668]
[1741456640051,0.02336911,86257.0,86252.0,0.00842668]
[1741456640396,0.001,86255.0,86252.0,0.00842668]
[1741456641422,0.001,86255.0,86251.0,0.0001699]
[1741456641624,0.197091,86254.0,86253.0,0.00842527]
[1741456641782,0.197091,86254.0,86252.0,0.00842668]
[1741456641983,0.197091,86254.0,86251.0,0.0001699]
[1741456642333,0.197091,86254.0,86252.0,0.00842668]
[1741456642676,0.198091,86254.0,86252.0,0.00842668]
[1741456642868,0.197091,86254.0,86252.0,0.00842668]
[1741456643301,0.199091,86254.0,86252.0,0.00842668]
[1741456643503,0.198091,86254.0,86252.0,0.00842668]
[1741456643985,0.011593,86253.0,86252.0,0.00842668]
[1741456648221,0.21770049,86254.0,86252.0,0.00842668]
[1741456649186,0.011593,86253.0,86252.0,0.00842668]
[1741456649884,0.697095,86252.0,86251.0,0.0001699]
[1741456651159,0.697095,86252.0,86217.0,0.01217424]
[1741456651160,0.2,86241.0,86224.0,0.1226]
[1741456651361,0.197151,86228.0,86218.0,0.0001699]
[1741456651840,0.197151,86228.0,86227.0,0.00021031]
[1741456652855,0.197151,86228.0,86227.0,0.00221031]
[1741456653911,0.197151,86228.0,86227.0,0.00021031]
[1741456657886,0.2059225,86228.0,86227.0,0.00021031]
[1741456659240,0.5059225,86228.0,86227.0,0.00021031]
[1741456659460,0.5816225,86228.0,86227.0,0.00021031]
[1741456660265,0.5836225,86228.0,86227.0,0.00021031]
[1741456660467,0.5846225,86228.0,86227.0,0.00021031]
[1741456660706,0.5816225,86228.0,86227.0,0.00021031]
[1741456660914,0.5866225,86228.0,86227.0,0.00021031]
[1741456661166,0.5896225,86228.0,86227.0,0.00021031]
[1741456666870,0.5896225,86228.0,86218.0,0.0001699]
[1741456666871,0.197171,86219.0,86218.0,0.0001699]
[1741456667069,0.197171,86219.0,86218.0,0.00021023]
[1741456668338,0.199171,86219.0,86218.0,0.00021023]
[1741456670561,0.201171,86219.0,86218.0,0.00021023]
[1741456671673,0.22487546,86219.0,86218.0,0.00021023]
[1741456672854,0.52487546,86219.0,86218.0,0.00021023]
[1741456682985,0.52287546,86219.0,86218.0,0.00021023]
[1741456683385,0.52487546,86219.0,86218.0,0.00021023]
[1741456683585,0.52287546,86219.0,86218.0,0.00021023]
[1741456684043,0.52687546,86219.0,86218.0,0.00021023]
[1741456684422,0.006,86219.0,86218.0,0.00021023]
[1741456685079,0.02932008,86219.0,86218.0,0.12411023]
[1741456685279,0.006,86219.0,86218.0,0.13570823]
[1741456685482,0.006,86219.0,86218.0,0.13271127]
[1741456685984,0.006,86219.0,86218.0,0.14430927]
[1741456686215,0.011597,86225.0,86219.0,0.011598]
[1741456686416,0.004,86219.0,86218.0,0.13271127]
[1741456686590,0.006,86219.0,86218.0,0.12411023]
[1741456686891,0.004,86219.0,86218.0,0.13271127]
[1741456687101,0.011598,86221.0,86218.0,0.13371127]
[1741456687443,0.02314318,86223.0,86220.0,0.197168]
[1741456687647,0.02314318,86223.0,86222.0,0.011597]
[1741456687888,0.327,86227.0,86226.0,0.011597]
[1741456688563,0.0003398,86228.0,86226.0,0.011597]
[1741456688786,0.0003398,86228.0,86226.0,0.010597]
[1741456689338,0.0003398,86228.0,86226.0,0.009597]
[1741456689604,0.3,86230.0,86226.0,0.009597]
[1741456690057,0.0023398,86227.0,86226.0,0.009597]
[1741456690273,0.0003398,86227.0,86224.0,0.011597]
[1741456691304,0.01853796,86227.0,86224.0,0.011597]
[1741456692259,0.01953796,86227.0,86224.0,0.011597]
[1741456692469,0.0033398,86227.0,86224.0,0.011597]
[1741456692670,0.0023398,86227.0,86224.0,0.011597]
[1741456695483,0.1878968,86227.0,86222.0,0.011597]
[1741456695832,0.011597,86226.0,86220.0,0.197168]
[1741456696048,0.011597,86226.0,86220.0,0.011598]
[1741456696283,0.011597,86226.0,86221.0,0.011598]
[1741456697512,0.012597,86226.0,86220.0,0.011598]
[1741456697723,0.197158,86225.0,86220.0,0.011598]
[1741456697890,0.011597,86225.0,86220.0,0.011598]
[1741456698894,0.001,86226.0,86225.0,0.137697]
[1741456699430,0.01853804,86227.0,86226.0,0.197155]
[1741456699625,0.01853804,86227.0,86226.0,0.196155]
[1741456699842,0.01853804,86227.0,86226.0,0.28110805]
[1741456701650,0.01853804,86227.0,86226.0,0.28310805]
[1741456703490,0.01853804,86227.0,86226.0,0.01055305]
[1741456703491,0.03013504,86227.0,86226.0,0.01055305]
[1741456703994,0.03013504,86227.0,86226.0,0.00855305]
[1741456704194,0.0119368,86227.0,86226.0,0.00855305]
[1741456704425,0.0119368,86227.0,86226.0,0.002]
[1741456704631,0.0119368,86227.0,86226.0,0.00855305]
[1741456704788,0.0119368,86227.0,86222.0,0.197163]
[1741456704988,0.0119368,86227.0,86226.0,0.00955305]
[1741456705190,0.0119368,86227.0,86226.0,0.001]
[1741456705390,0.0119368,86227.0,86226.0,0.00955305]
[1741456705616,0.0003398,86227.0,86223.0,0.011597]
[1741456705840,0.0003398,86227.0,86226.0,0.00855305]
[1741456706638,0.0003398,86227.0,86224.0,0.011597]
[1741456706812,0.0003398,86227.0,86226.0,0.00855305]
[1741456707139,0.0003398,86227.0,86226.0,0.20570805]
[1741456707358,0.01853754,86227.0,86226.0,0.20570805]
[1741456707494,0.01853754,86227.0,86226.0,0.20770805]
[1741456712601,0.0003398,86227.0,86226.0,0.20770805]
[1741456713018,0.0003398,86227.0,86226.0,0.01055305]
[1741456713153,0.0003398,86227.0,86226.0,0.02215005]
[1741456713756,0.0003398,86227.0,86226.0,0.02015005]
[1741456714071,0.0003398,86227.0,86226.0,0.02115005]
[1741456714477,0.0003398,86227.0,86226.0,0.02015005]
[1741456714810,0.0003398,86227.0,86226.0,0.02215005]
[1741456715245,0.0003398,86227.0,86226.0,0.01055305]
[1741456715625,0.01853744,86227.0,86226.0,0.01055305]
[1741456716974,0.01853744,86227.0,86226.0,0.00855305]
[1741456717176,0.01853744,86227.0,86224.0,0.1973289]
[1741456717304,0.01853744,86227.0,86226.0,0.00954551]
[1741456717511,0.01853744,86227.0,86226.0,0.001]
[1741456717813,0.01853744,86227.0,86226.0,0.00954551]
[1741456717981,0.01853744,86227.0,86226.0,0.00854551]
[1741456718201,0.01853744,86227.0,86224.0,0.1857319]
[1741456718402,0.01853744,86227.0,86226.0,0.00854551]
[1741456718542,0.01853744,86227.0,86225.0,0.00854692]
[1741456718742,0.01853744,86227.0,86224.0,0.1857319]
[1741456718966,0.01853744,86227.0,86226.0,0.00954551]
[1741456719225,0.01853744,86227.0,86226.0,0.001]
[1741456719449,0.01853744,86227.0,86226.0,0.00954561]
[1741456720300,0.01853744,86227.0,86226.0,0.00854561]
[1741456720506,0.01853744,86227.0,86226.0,0.001]
[1741456720674,0.01853744,86227.0,86226.0,0.00954556]
[1741456720882,0.01853744,86227.0,86226.0,0.00854556]
[1741456721101,0.01853744,86227.0,86224.0,0.1973289]
[1741456721301,0.01853744,86227.0,86226.0,0.00954556]
[1741456721688,0.01853744,86227.0,86226.0,0.012597]
[1741456721890,0.01853744,86227.0,86226.0,0.02114256]
[1741456722106,0.01853744,86227.0,86226.0,0.02014256]
[1741456723901,0.01853744,86227.0,86226.0,0.02114256]
[1741456725212,0.01853744,86227.0,86226.0,0.02014256]
[1741456726689,0.01853744,86227.0,86226.0,0.02131246]
[1741456727483,0.01853744,86227.0,86226.0,0.02031246]
[1741456728047,0.01853744,86227.0,86226.0,0.00871546]
[1741456728270,0.01853744,86227.0,86226.0,0.00971546]
[1741456728498,0.01853744,86227.0,86226.0,0.02131246]
[1741456732303,0.01853744,86227.0,86226.0,0.02031246]
[1741456733669,0.01853744,86227.0,86226.0,0.02131246]
[1741456734078,0.01853744,86227.0,86226.0,0.02031246]
[1741456734420,0.01853744,86227.0,86226.0,0.02131246]
[1741456734577,0.01853744,86227.0,86226.0,0.02031246]
[1741456734978,0.01853744,86227.0,86226.0,0.02131246]
[1741456735180,0.01853744,86227.0,86226.0,0.02031246]
[1741456735528,0.01853744,86227.0,86226.0,0.02131246]
[1741456737784,0.01853744,86227.0,86226.0,0.02031246]
[1741456738199,0.01853744,86227.0,86226.0,0.02131246]
[1741456738627,0.01853744,86227.0,86226.0,0.02031246]
[1741456740128,0.01853744,86227.0,86226.0,0.02131246]
[1741456740656,0.01853744,86227.0,86226.0,0.01886848]
[1741456743337,0.01853744,86227.0,86226.0,0.01786848]
[1741456743739,0.01853744,86227.0,86226.0,0.01886848]
[1741456743945,0.01853744,86227.0,86226.0,0.01786848]
[1741456744462,0.01853744,86227.0,86226.0,0.00727148]
[1741456744651,0.01853744,86227.0,86226.0,0.01886848]
[1741456746563,0.01853744,86227.0,86226.0,0.01786848]
[1741456747017,0.01853744,86227.0,86226.0,0.01886848]
[1741456747225,0.01853744,86227.0,86226.0,0.01786848]
[1741456747376,0.01853744,86227.0,86226.0,0.01886848]
[1741456749874,0.01853744,86227.0,86226.0,0.01786848]
[1741456750056,0.01853744,86227.0,86226.0,0.01886848]
[1741456750392,0.01853744,86227.0,86226.0,0.01786848]
[1741456750627,0.01853744,86227.0,86226.0,0.01886848]
[1741456752882,0.01853744,86227.0,86226.0,0.01786848]
[1741456753323,0.01853744,86227.0,86226.0,0.01886848]
[1741456753522,0.01853744,86227.0,86226.0,0.01786848]
[1741456753834,0.01853744,86227.0,86226.0,0.01886848]
[1741456756128,0.01853744,86227.0,86226.0,0.01786848]
[1741456756964,0.01853744,86227.0,86226.0,0.01886848]
[1741456757263,0.01853744,86227.0,86226.0,0.01786848]
[1741456757647,0.01853744,86227.0,86226.0,0.01886848]
[1741456779846,0.01853744,86227.0,86226.0,0.01786848]
[1741456780170,0.01853744,86227.0,86226.0,0.01886848]
[1741456780306,0.01853744,86227.0,86226.0,0.01786848]
[1741456780712,0.01853744,86227.0,86226.0,0.01886848]
[1741456782928,0.01853744,86227.0,86226.0,0.01786848]
[1741456783140,0.03013444,86227.0,86226.0,0.00627148]
[1741456783304,0.03013444,86227.0,86226.0,0.00727148]
[1741456783504,0.0119368,86227.0,86226.0,0.0011699]
[1741456785127,0.0119368,86227.0,86226.0,0.0001699]
[1741456785564,0.0149368,86227.0,86226.0,0.0001699]
[1741456786169,0.0119368,86227.0,86226.0,0.0001699]
[1741456786696,0.03313573,86227.0,86226.0,0.0001699]
[1741456787195,0.03513573,86227.0,86226.0,0.0001699]
[1741456788886,0.03513573,86227.0,86226.0,0.00605432]
[1741456789083,0.03513573,86227.0,86226.0,0.0001699]
[1741456789291,0.02353873,86227.0,86226.0,0.00606492]
[1741456789498,0.02353873,86227.0,86226.0,0.0001699]
[1741456789694,0.185548,86231.0,86226.0,0.00606492]
[1741456790109,0.01819852,86227.0,86226.0,0.00606492]
[1741456790899,0.01819852,86227.0,86226.0,0.01766192]
[1741456791797,0.02019852,86227.0,86226.0,0.01766192]
[1741456792560,0.02319852,86227.0,86226.0,0.01766192]
[1741456793191,0.005,86227.0,86226.0,0.01766192]
[1741456793387,0.005,86227.0,86226.0,0.00606492]
[1741456793602,0.016597,86227.0,86226.0,0.00606492]
[1741456793809,0.016597,86227.0,86226.0,0.0001699]
[1741456796076,0.03479553,86227.0,86226.0,0.0001699]
[1741456797053,0.03496543,86227.0,86226.0,0.0001699]
[1741456797899,0.185554,86229.0,86226.0,0.0001699]
[1741456798120,0.185556,86227.0,86226.0,0.0001699]
[1741456798340,0.20375459,86227.0,86226.0,0.0001699]
[1741456798941,0.21535159,86227.0,86226.0,0.0001699]
[1741456800130,0.21535159,86227.0,86226.0,0.00606506]
[1741456801378,0.199153,86227.0,86226.0,0.00606506]
[1741456801578,0.002,86227.0,86226.0,0.00606506]
[1741456801802,0.002,86227.0,86226.0,0.20322006]
[1741456802358,0.013597,86227.0,86226.0,0.00606506]
[1741456803998,0.002,86227.0,86226.0,0.00606506]
[1741456805010,0.002,86227.0,86226.0,0.10082172]
[1741456805286,0.002,86227.0,86226.0,0.00606506]
[1741456805287,0.013597,86227.0,86226.0,0.00606506]
[1741456805892,0.011597,86227.0,86226.0,0.00606506]
[1741456806104,0.013597,86227.0,86226.0,0.00606506]
[1741456806724,0.002,86227.0,86226.0,0.01766206]
[1741456806946,0.003,86227.0,86226.0,0.00606506]
[1741456807138,0.002,86227.0,86226.0,0.00606506]
[1741456807487,0.001,86227.0,86226.0,0.00606506]
[1741456807694,0.012597,86227.0,86226.0,0.00606506]
[1741456807899,0.014597,86227.0,86226.0,0.00606506]
[1741456808358,0.003,86227.0,86226.0,0.00606506]
[1741456809306,0.001,86227.0,86226.0,0.00606506]
[1741456809512,0.0001698,86228.0,86226.0,0.00606506]
[1741456809848,0.001,86227.0,86226.0,0.00606506]
[1741456810282,0.001,86227.0,86226.0,0.01866206]
[1741456810686,0.01819734,86227.0,86226.0,0.00606506]
[1741456811164,0.01819734,86227.0,86226.0,0.01766206]
[1741456811969,0.01819734,86227.0,86226.0,0.01966206]
[1741456812133,0.01819734,86227.0,86226.0,0.10166206]
[1741456812330,0.01819734,86227.0,86226.0,0.09966206]
[1741456812595,0.01819734,86227.0,86226.0,0.10166206]
[1741456812786,0.01819734,86227.0,86226.0,0.10366206]
[1741456814857,0.01819734,86227.0,86226.0,0.10166206]
[1741456815006,0.01819734,86227.0,86226.0,0.10366206]
[1741456815525,0.01819734,86227.0,86226.0,0.09206506]
[1741456815734,0.01819734,86227.0,86226.0,0.0861699]
[1741456816095,0.01819734,86227.0,86226.0,0.09205952]
[1741456816265,0.01819734,86227.0,86226.0,0.08805952]
[1741456816700,0.01819734,86227.0,86226.0,0.08905952]
[1741456817107,0.01819734,86227.0,86226.0,0.09105952]
[1741456817528,0.01819734,86227.0,86226.0,0.08805952]
[1741456817938,0.01819734,86227.0,86226.0,0.00605952]
[1741456817939,0.20375334,86227.0,86226.0,0.00605952]
[1741456818066,0.21535034,86227.0,86226.0,0.00605952]
[1741456818273,0.01819734,86227.0,86226.0,0.00705952]
[1741456818686,0.01819734,86227.0,86226.0,0.00605952]
[1741456819187,0.01919734,86227.0,86226.0,0.00605952]
[1741456819444,0.01919734,86227.0,86226.0,0.00805952]
[1741456819743,0.01919734,86227.0,86226.0,0.00605952]
[1741456819744,0.01819734,86227.0,86226.0,0.00605952]
[1741456819978,0.01819734,86227.0,86226.0,0.00705952]
[1741456820717,0.01819734,86227.0,86226.0,0.00905952]
[1741456821894,0.01819734,86227.0,86226.0,0.00805952]
[1741456822433,0.01819734,86227.0,86226.0,0.00905952]
[1741456822639,0.01819734,86227.0,86226.0,0.00705952]
[1741456823407,0.01819734,86227.0,86226.0,0.00905952]
[1741456823967,0.02979434,86227.0,86226.0,0.00905952]
[1741456824091,0.011597,86227.0,86226.0,0.0031699]
[1741456824948,0.311597,86227.0,86226.0,0.0031699]
[1741456825083,0.311597,86227.0,86226.0,0.0021699]
[1741456825305,0.313597,86227.0,86226.0,0.0021699]
[1741456825752,0.311597,86227.0,86226.0,0.0001699]
[1741456826158,0.314597,86227.0,86226.0,0.0001699]
[1741456826358,0.313597,86227.0,86226.0,0.0001699]
[1741456826768,0.314597,86227.0,86226.0,0.0001699]
[1741456827132,0.3327962,86227.0,86226.0,0.0001699]
[1741456829043,0.3327962,86227.0,86224.0,0.0001699]
[1741456829044,0.511597,86225.0,86224.0,0.0001699]
[1741456829242,0.592097,86225.0,86224.0,0.0001699]
[1741456830336,0.593097,86225.0,86224.0,0.0001699]
[1741456831245,0.595097,86225.0,86224.0,0.0001699]
[1741456831804,0.593097,86225.0,86224.0,0.0001699]
[1741456832055,0.597097,86225.0,86224.0,0.0001699]
[1741456832261,0.597097,86225.0,86224.0,4.475e-05]
[1741456832496,0.3,86224.0,86215.0,0.0001699]
[1741456832662,0.544271,86219.0,86215.0,0.0001699]
[1741456833891,0.625771,86219.0,86215.0,0.0001699]
[1741456834091,0.511598,86216.0,86215.0,0.0001699]
[1741456834362,0.697178,86216.0,86215.0,0.0001699]
[1741456835819,0.71538041,86216.0,86215.0,0.0001699]
[1741456836620,0.71938041,86216.0,86215.0,0.0001699]
[1741456837201,0.72238041,86216.0,86215.0,0.0001699]
[1741456838066,1.21901841,86216.0,86215.0,0.0001699]
[1741456838433,0.497196,86208.0,86207.0,0.0003396]
[1741456838660,0.618716,86208.0,86207.0,0.0003396]
[1741456839647,0.63609496,86208.0,86207.0,0.0003396]
[1741456839858,0.63709496,86208.0,86207.0,0.0003396]
[1741456845786,0.51557496,86208.0,86207.0,0.0003396]
[1741456847124,0.53895508,86208.0,86207.0,0.0003396]
[1741456850441,0.61595508,86208.0,86207.0,0.0003396]
[1741456851308,0.61595508,86208.0,86200.0,4e-05]
[1741456851309,0.697212,86201.0,86200.0,4e-05]
[1741456851478,0.95683693,86201.0,86200.0,4e-05]
[1741456851879,1.03383693,86201.0,86181.0,0.0496]
[1741456852157,0.197236,86191.0,86179.0,0.0829]
[1741456853244,0.307067,86195.0,86166.0,0.0829]
[1741456853245,0.011604,86172.0,86166.0,0.0829]
[1741456853442,0.011604,86172.0,86164.0,0.0547698]
[1741456853443,0.19735521,86172.0,86164.0,0.0547698]
[1741456853641,0.19735521,86172.0,86171.0,0.00644448]
[1741456853864,0.19735521,86172.0,86171.0,0.0004]
[1741456854643,0.21556462,86172.0,86171.0,0.0004]
[1741456855502,0.23920283,86172.0,86171.0,0.0004]
[1741456855962,0.24020283,86172.0,86171.0,0.0004]
[1741456856367,0.23920283,86172.0,86171.0,0.0004]
[1741456856677,0.24020283,86172.0,86171.0,0.0005699]
[1741456857433,0.24912244,86172.0,86171.0,0.0005699]
[1741456861481,0.24020283,86172.0,86171.0,0.0789699]
[1741456865236,0.04192383,86172.0,86171.0,0.0789699]
[1741456865467,0.03531842,86172.0,86171.0,0.0005699]
[1741456865606,0.03731842,86172.0,86171.0,0.00667374]
[1741456865807,0.03731842,86172.0,86171.0,0.0005699]
[1741456866132,0.03531842,86172.0,86171.0,0.0005699]
[1741456866309,0.03731842,86172.0,86171.0,0.0005699]
[1741456866510,0.03831842,86172.0,86171.0,0.0005699]
[1741456866712,0.03531842,86172.0,86171.0,0.0005699]
[1741456867273,0.03631842,86172.0,86171.0,0.0005699]
[1741456868238,0.05652759,86172.0,86171.0,0.0005699]
[1741456876950,0.05352759,86172.0,86171.0,0.0005699]
[1741456877389,0.05452759,86172.0,86171.0,0.0005699]
[1741456877581,0.05352759,86172.0,86171.0,0.0005699]
[1741456877925,0.05452759,86172.0,86171.0,0.0005699]
[1741456878346,0.05752759,86172.0,86171.0,0.0005699]
[1741456878879,0.05452759,86172.0,86171.0,0.0005699]
[1741456879285,0.05752759,86172.0,86171.0,0.0005699]
[1741456879662,0.05452759,86172.0,86171.0,0.0005699]
[1741456879867,0.05352759,86172.0,86171.0,0.0005699]
[1741456880090,0.05852759,86172.0,86171.0,0.0005699]
[1741456880267,0.06252759,86172.0,86171.0,0.0005699]
[1741456880700,0.05852759,86172.0,86171.0,0.0005699]
[1741456880908,0.04331842,86172.0,86171.0,0.0005699]
[1741456881296,0.34331842,86172.0,86171.0,0.0005699]
[1741456881499,0.34031842,86172.0,86171.0,0.0005699]
[1741456881734,0.34031842,86172.0,86164.0,0.0051698]
[1741456881735,0.011605,86165.0,86164.0,0.0051698]
[1741456881928,0.011605,86165.0,86164.0,1e-08]
[1741456881929,0.497295,86165.0,86164.0,1e-08]
[1741456883120,0.500295,86165.0,86164.0,1e-08]
[1741456883869,0.51850704,86165.0,86164.0,1e-08]
[1741456885010,0.500295,86165.0,86164.0,1e-08]
[1741456886070,0.497295,86165.0,86164.0,1e-08]
[1741456886221,0.500295,86165.0,86164.0,1e-08]
[1741456887053,0.497295,86165.0,86164.0,1e-08]
[1741456887259,0.501295,86165.0,86164.0,1e-08]
[1741456887581,0.500295,86165.0,86164.0,1e-08]
[1741456887747,0.501295,86165.0,86164.0,1e-08]
[1741456888106,0.500295,86165.0,86164.0,1e-08]
[1741456888305,0.501295,86165.0,86164.0,1e-08]
[1741456888529,0.497295,86165.0,86164.0,1e-08]
[1741456888823,0.499295,86165.0,86164.0,1e-08]
[1741456889027,0.501295,86165.0,86164.0,1e-08]
[1741456889470,0.499295,86165.0,86164.0,1e-08]
[1741456889646,0.503295,86165.0,86164.0,1e-08]
[1741456890354,0.497295,86165.0,86164.0,1e-08]
[1741456890493,0.500295,86165.0,86164.0,1e-08]
[1741456890699,0.503295,86165.0,86164.0,1e-08]
[1741456892161,0.500295,86165.0,86164.0,1e-08]
[1741456892369,0.504295,86165.0,86164.0,1e-08]
[1741456892968,0.500295,86165.0,86164.0,1e-08]
[1741456893167,0.504295,86165.0,86164.0,1e-08]
[1741456893582,0.497295,86165.0,86164.0,1e-08]
[1741456893941,0.501295,86165.0,86164.0,1e-08]
[1741456894144,0.497295,86165.0,86164.0,1e-08]
[1741456894560,0.505295,86165.0,86164.0,1e-08]
[1741456895570,0.205295,86165.0,86164.0,1e-08]
[1741456896219,0.205635,86165.0,86164.0,1e-08]
[1741456896407,0.200635,86165.0,86164.0,1e-08]
[1741456896806,0.197635,86165.0,86164.0,1e-08]
[1741456897244,0.200635,86165.0,86164.0,1e-08]
[1741456897492,0.204635,86165.0,86164.0,1e-08]
[1741456898273,0.00368758,86165.0,86164.0,1e-08]
[1741456898551,0.20098258,86165.0,86164.0,1e-08]
[1741456898762,0.20098258,86165.0,86164.0,0.07760001]
[1741456899206,0.20098258,86165.0,86164.0,1e-08]
[1741456899859,0.197295,86165.0,86164.0,1e-08]
[1741456900040,0.198295,86165.0,86164.0,1e-08]
[1741456900443,0.197295,86165.0,86164.0,1e-08]
[1741456900647,0.200295,86165.0,86164.0,1e-08]
[1741456900848,0.204295,86165.0,86164.0,1e-08]
[1741456901071,0.204295,86165.0,86164.0,0.04590001]
[1741456901511,0.200295,86165.0,86164.0,0.04590001]
[1741456901700,0.21850567,86165.0,86164.0,0.04590001]
[1741456902884,0.21950567,86165.0,86164.0,0.05203623]
[1741456903085,0.22150567,86165.0,86164.0,0.04590001]
[1741456903527,0.21550567,86165.0,86164.0,0.04590001]
[1741456903730,0.21950567,86165.0,86164.0,0.04590001]
[1741456904172,0.21550567,86165.0,86164.0,0.04590001]
[1741456904492,0.21750567,86165.0,86164.0,0.04590001]
[1741456904717,0.22050567,86165.0,86164.0,0.04590001]